Cogmind - Beta 12 @@@ ROGUE MODE // 2023.05.03 @ 00:15:11 Player: Exp. Geonium Core Result: Destroyed by 8R-AWN with 8R-AWN's Boregun Performance ------------- Evolutions (0) 0 Regions Visited (3) 600 Robots Destroyed (8) 40 Value Destroyed (293) 293 Prototype IDs (23) 460 Alien Tech Used (0) 0 Bonus (294) 294 TOTAL SCORE: 1687 Bonus ------- Follower Combat Kills 60 Aligned with FarCom 300 Friendly Fire -66 Cogmind --------- Core Integrity 0/250 Matter 285/300 Energy 99/100 System Corruption 0% Temperature Cool (0) Movement Core (100) Ox1 Location -10/Exiles Parts ------- > --- POWER (1) -------- (None) > --- PROPULSION (2) --- (None) > --- UTILITY (2) ------ (None) > --- WEAPON (2) ------- Light Assault Rifle Ripper > --- INVENTORY (5) ---- Light Armor Plating EM Pulse Gun Grenade Launcher Datajack Peak State ------------ > --- POWER ------------ Light Nuclear Core > --- PROPULSION ------- Light Treads > --- UTILITY ---------- Small Storage Unit Light Armor Plating > --- WEAPON ----------- Assault Rifle Ripper > --- INVENTORY -------- Light Ion Engine Light Armor Plating Light Armor Plating Light Armor Plating EM Pulse Gun Light Assault Rifle Grenade Launcher Datajack [Rating: 11] Favorites ----------- Power Light Nuclear Core Engine Light Ion Engine Power Core Light Nuclear Core Propulsion Light Treads Treads Light Treads Leg Aluminum Leg Utility Small Storage Unit Storage Small Storage Unit Protection Light Armor Plating Weapon Assault Rifle Energy Gun EM Pulse Gun Ballistic Gun Assault Rifle Slashing Weapon Ripper Build | -11 -10 -10 -10 ------- Run | Jun Mat Min Exi Slots Evolved . | . . . . Power . | . . . . Propulsion . | . . . . Utility . | . . . . Weapon . | . . . . Parts Attached 9 | . 3 2 4 Power 1 | . . 1 . Engine . | . . . . Core 1 | . . 1 . Reactor . | . . . . Propulsion 2 | . 2 . . Treads 2 | . 2 . . Leg . | . . . . Wheel . | . . . . Hover . | . . . . Flight . | . . . . Utility 3 | . . 1 2 Device . | . . . . Storage . | . . . . Processor . | . . . . Hackware . | . . . . Protection 3 | . . 1 2 Artifact . | . . . . Weapon 3 | . 1 . 2 Energy Gun . | . . . . Energy Cannon . | . . . . Ballistic Gun 2 | . 1 . 1 Ballistic Cannon . | . . . . Launcher . | . . . . Special Weapon . | . . . . Impact Weapon . | . . . . Slashing Weapon 1 | . . . 1 Piercing Weapon . | . . . . Special Melee Weapon . | . . . . Unidentified Prototypes . | . . . . Parts Lost 7 | . . . 7 Power 1 | . . . 1 Propulsion 2 | . . . 2 Utility 3 | . . . 3 Weapon 1 | . . . 1 Highest Loss Streak 7 | . . . 7 To Critical Strikes 4 | . . . 4 Average Slot Usage (%) 94 | . 85 96 95 Engine 2 | . 14 . . Core 11 | . . 13 13 Treads 26 | . 26 28 24 Storage 13 | . 14 14 13 Protection 10 | . . 10 14 Ballistic Gun 26 | . 21 28 25 Naked Turns . | . . . . Heaviest Build 18 | 12 12 16 18 Greatest Support 40 | 20 40 40 40 Greatest Overweight (x) . | . . . . Average Overweight (x) . | . . . . Largest Inventory Capacity 8 | . 8 8 8 Average Capacity 7 | . 8 8 7 Most Carried 8 | . 8 8 8 Average Carried 7 | . 7 7 7 Final Capacity 8 | 8 8 8 5 Final Carried 8 | 6 8 8 4 Class Distribution -------------------- 100% | Mutant Dominant Class ---------------- Mutant | -10/Materials Mutant | -10/Mines Mutant | -10/Exiles Resources | -11 -10 -10 -10 ----------- Run | Jun Mat Min Exi Matter Collected 367 | 200 85 72 10 Remotely . | . . . . Salvage Created 226 | . 148 78 . Parts 18 | . 12 6 . Haulers Intercepted . | . . . . Recyclers Shooed . | . . . . Parts Field Recycled . | . . . . Retrieved Matter . | . . . . Parts Self-Destructed . | . . . . Prevented . | . . . . Kills | -11 -10 -10 -10 ------- Run | Jun Mat Min Exi Combat Hostiles Destroyed 6 | . 4 2 . Guns 6 | . 4 2 . Classes Destroyed 3 | . 2 1 . Tunneler 1 | . . 1 . Watcher 1 | . 1 . . Grunt 6 | . 4 2 . Best Kill Streak 5 | . 5 2 . Combat Bots Only 4 | . 4 2 . Max Kills in Single Turn 1 | . 1 1 . Gunslinging . | . . . . Exploded . | . . . . Melee . | . . . . Uniques/NPCs Destroyed . | . . . . Combat | -11 -10 -10 -10 -------- Run | Jun Mat Min Exi Damage Taken 1171 | . 315 142 714 Core 257 | . 60 10 187 Absorbed by Shields . | . . . . Core Remaining (%) 100 | 100 . . . Volleys Fired 28 | . 18 9 1 Largest 2 | . 2 2 2 Hottest 60 | . 60 40 40 Shots Fired 56 | . 36 18 2 Gun 56 | . 36 18 2 Cannon . | . . . . Launcher . | . . . . Special . | . . . . Kinetic 55 | . 35 18 2 Thermal . | . . . . Explosive . | . . . . Electromagnetic 1 | . 1 . . Robot Hit Streak 8 | . 5 8 3 Robot Miss Streak 1 | . 1 1 . Penetration Max . | . . . . Secondary Targets 3 | . 2 1 . Max Gunslinging Chain 1 | . 1 1 . Shots Hit Robots 51 | . 18 15 18 Core Hits 17 | . 11 5 1 Critical Kills . | . . . . Critical Parts Destroyed . | . . . . Critical Strikes 2 | . . . 2 Sever 2 | . . . 2 Melee Attacks 21 | . . . 21 Impact . | . . . . Slashing 21 | . . . 21 Piercing . | . . . . Sneak Attacks . | . . . . Combat Hostiles . | . . . . Follow-up Attacks . | . . . . Damage Inflicted 1025 | . 277 145 603 Guns 338 | . 174 142 22 Cannons . | . . . . Explosions 103 | . 103 . . Melee 581 | . . . 581 Ramming 3 | . . 3 . Kinetic 338 | . 174 142 22 Thermal . | . . . . Explosive 103 | . 103 . . Electromagnetic . | . . . . Impact . | . . . . Slashing 581 | . . . 581 Piercing . | . . . . Highest Corruption . | . . . . Average Corruption . | . . . . Corruption Purged . | . . . . Corruption Blocked . | . . . . Overload Shots . | . . . . Overflow Damage . | . . . . Projectiles . | . . . . Explosions . | . . . . Melee . | . . . . Knockbacks . | . . . . Impact . | . . . . Kinetic . | . . . . Secondary . | . . . . Self-Inflicted Damage 121 | . 121 . . Shots 2 | . 2 . . Rammed . | . . . . Targets Rammed 1 | . . 1 . Kicked . | . . . . Crushed 1 | . . 1 . Highest Temperature 15 | . 12 15 10 Average Temperature 6 | . 6 6 7 Received Heat Transfer 189 | . 111 78 . Siege Activations . | . . . . Robots Corrupted . | . . . . Combat Hostiles . | . . . . Parts Fried . | . . . . Impact Corruptions . | . . . . Robots Melted . | . . . . Combat Hostiles . | . . . . Parts Melted . | . . . . Heat Transferred . | . . . . Parts Sabotaged . | . . . . Parts Stolen . | . . . . Parts Stripped . | . . . . Power Chain Reactions . | . . . . Missiles Intercepted . | . . . . Alert | -11 -10 -10 -10 ------- Run | Jun Mat Min Exi Peak Influence 285 | . 285 161 . Initial 111 | . . 111 . Average 109 | . 89 113 . Maximum Alert Level 1 | . 1 . . Low Security (%) 95 | . 78 100 . Level 1 4 | . 21 . . Level 2 . | . . . . Level 3 . | . . . . Level 4 . | . . . . Level 5 . | . . . . High Security . | . . . . Max Security . | . . . . Squads Dispatched 2 | . 1 1 . Investigation . | . . . . Extermination . | . . . . Reinforcement 1 | . 1 . . Assault 1 | . . 1 . Garrison . | . . . . Intercept . | . . . . Searches Triggered . | . . . . Construction Impeded . | . . . . Haulers Reinforced . | . . . . Active Scanning Responses . | . . . . Cargo Convoy Interrupts . | . . . . Stealth | -11 -10 -10 -10 --------- Run | Jun Mat Min Exi Distress Signals 2 | . 2 . . Communications Jammed . | . . . . Distress Signals . | . . . . Times Spotted 14 | . 9 4 1 Peak Tracking Total 8 | . 8 2 3 Tactical Retreats 2 | . 2 . . Traps | -11 -10 -10 -10 ------- Run | Jun Mat Min Exi Traps Triggered . | . . . . Indirectly . | . . . . Trap Hack Attempts . | . . . . Triggered . | . . . . Disarmed . | . . . . Reprogrammed . | . . . . Reused . | . . . . Traps Extracted . | . . . . Installed . | . . . . Triggered . | . . . . Machines | -11 -10 -10 -10 ---------- Run | Jun Mat Min Exi Machines Disabled 4 | . 4 . . Max in Single Turn 4 | . 4 . . Machines Repaired . | . . . . Machines Sabotaged . | . . . . Overloaded Fab Kills . | . . . . Hacking | -11 -10 -10 -10 --------- Run | Jun Mat Min Exi Machines Accessed 2 | . . . 2 Terminals . | . . . . Fabricators . | . . . . Repair Stations . | . . . . Recycling Units . | . . . . Scanalyzers . | . . . . Garrison Access . | . . . . Total Hacks 2 | . . . 2 Successful 2 | . . . 2 Failed . | . . . . Catastrophic . | . . . . Database Lockouts . | . . . . Manual 1 | . . . 1 Terminals . | . . . . Fabricators . | . . . . Repair Stations . | . . . . Recycling Units . | . . . . Scanalyzers . | . . . . Garrison Access . | . . . . Terminal Hacks 2 | . . . 2 Record 1 | . . . 1 EX-Prototype ID Bank 1 | . . . 1 Fabricator Hacks . | . . . . Repair Station Hacks . | . . . . Recycling Unit Hacks . | . . . . Scanalyzer . | . . . . Garrison Access Hacks . | . . . . Unauthorized Hacks . | . . . . Terminals . | . . . . Fabricators . | . . . . Repair Stations . | . . . . Recycling Units . | . . . . Scanalyzers . | . . . . Garrison Access . | . . . . Data Cores Recovered . | . . . . Used . | . . . . Hacking Detections . | . . . . Full Trace Events . | . . . . Feedback Events . | . . . . Feedback Blocked . | . . . . Robot Schematics Acquired . | . . . . Robots Built . | . . . . Authchips . | . . . . Time . | . . . . Total Robot Build Rating . | . . . . Part Schematics Acquired . | . . . . Parts Built . | . . . . Authchips . | . . . . Time . | . . . . Total Part Build Rating . | . . . . Parts Repaired . | . . . . Time . | . . . . Parts Recycled . | . . . . Recycled Matter . | . . . . Retrieved Matter . | . . . . Retrieved Components . | . . . . Parts Scanalyzed . | . . . . Part Schematics Acquired . | . . . . Parts Damaged . | . . . . Bothacking | -11 -10 -10 -10 ------------ Run | Jun Mat Min Exi Used RIF Installer . | . . . . Robots Hacked . | . . . . Non-combat . | . . . . Combat . | . . . . Robot Hacks Applied . | . . . . Relay Couplers Released . | . . . . Fabnet Peak Effective % . | . . . . Robots Rewired . | . . . . Allies Hacked . | . . . . Hacks Repelled . | . . . . Allies | -11 -10 -10 -10 -------- Run | Jun Mat Min Exi Total Allies 1 | . . 1 . Largest Group 1 | . . 1 1 Highest-Rated Group 31 | . . 31 31 Highest-Rated Ally 31 | . . 31 31 Total Orders . | . . . . Ally Attacks 5 | . . 4 1 Total Damage 88 | . . 86 2 Kills 2 | . . 2 . Allies Corrupted . | . . . . Allies Melted . | . . . . Intel | -11 -10 -10 -10 ------- Run | Jun Mat Min Exi Robot Analysis Total . | . . . . Derelict Logs Recovered 1 | . . 1 . Drone Launches . | . . . . Drone Recoveries . | . . . . Exploration | -11 -10 -10 -10 ------------- Run | Jun Mat Min Exi Turns Passed 1263 | . 149 610 504 Spaces Moved 637 | 1 57 354 225 Core . | . . . . Treads 628 | . 49 354 225 Legs 9 | 1 8 . . Wheels . | . . . . Hover . | . . . . Flight . | . . . . Fastest Speed 120 | 120 120 160 160 Average Speed 159 | 120 154 160 160 Slowest Speed 160 | 120 160 160 160 Overloaded Moves . | . . . . Propulsion Burnouts . | . . . . Robots Hopped . | . . . . Cave-ins Triggered . | . . . . Exploration Rate (%) 39 | 2 18 82 56 Regions Visited 3 Branch Regions 2 Pre-discovered Areas 1 | . . . 1 Known Exits Taken . | . . . . Unknown Exits Taken 3 | 1 1 1 . Scrap Searched . | . . . . Spaces Dug . | . . . . Terrain Destroyed 46 | . 46 . . Melee . | . . . . Projectile . | . . . . AOE 46 | . 46 . . Terrain Rammed . | . . . . Walls Destroyed . | . . . . Machines Disabled . | . . . . Actions | -11 -10 -10 -10 --------- Run | Jun Mat Min Exi Total 806 | . 87 382 337 Wait 99 | . . 15 84 Move 634 | . 56 353 225 Hop . | . . . . Pick Up 7 | . 6 1 . Fast Attach . | . . . . Attach 6 | . 2 1 3 Detach . | . . . . Swap 3 | . 1 1 1 Drop 7 | . 4 1 2 Fire 28 | . 18 9 1 Melee 21 | . . . 21 Ram . | . . . . Kick . | . . . . Crush 1 | . . 1 . Escape Stasis . | . . . . Rewire . | . . . . Trap . | . . . . Miscellaneous . | . . . . Route ------- -11/Junkyard -10/Materials -10/Mines (discovered 3 exits: [*Mat x2] / *Exi) -10/Exiles History --------- Turn | Location | Event 1 | -11/Junkyard | Discovered new exit (range 0) 1 | -11/Junkyard | Entered Materials 118 | -10/Materials | Discovered new exit (range 13) 150 | -10/Materials | Entered Mines 310 | -10/Mines | A weapon hastily lodged in a ceiling crevice suddenly fell to the ground 336 | -10/Mines | Build established: Mutant 381 | -10/Mines | Discovered new exit (range 11) 384 | -10/Mines | Learned Materials garrison access intel 608 | -10/Mines | Discovered new exit (range 11) 609 | -10/Mines | Met a Derelict testing a Signal Generator 754 | -10/Mines | Deemed a non-threat by the Exiles lab entrance 754 | -10/Mines | Discovered new exit (range 5) 760 | -10/Mines | Entered Exiles 760 | -10/Exiles | Accompanied by 1 ally 800 | -10/Exiles | Met 8R-AWN 826 | -10/Exiles | Met EX-HEX 900 | -10/Exiles | Met EX-DEC 906 | -10/Exiles | Learned location of Zion (-6) 932 | -10/Exiles | Met EX-BIN 954 | -10/Exiles | Aligned with FarCom system 956 | -10/Exiles | Given EX-Vault access code 996 | -10/Exiles | Opened EX-Vault 1032 | -10/Exiles | Warned to stay clear of 0b10 Research branches 1061 | -10/Exiles | Exiles lab attacked by MAIN.C 1201 | -10/Exiles | Attacked by the Exiles 1213 | -10/Exiles | Core integrity fell below 50% 1233 | -10/Exiles | Core integrity fell below 20% 1264 | -10/Exiles | Destroyed by 8R-AWN with 8R-AWN's Boregun Last Messages --------------- 01243_ Critical hit (Destroy). 01245_ 8R-AWN Prototype Leg severed. 01247_ Penetrated by HV Slug. 01247_ Critical hit (Destroy). 01247_ Penetrated by HV Slug. 01247_ Critical hit (Destroy). 01251_ Penetrated by HV Slug. 01251_ Critical hit (Destroy). 01251_ Lgt. Nuclear Core destroyed. 01251_ Penetrated by HV Slug. 01251_ Slug penetrates Machine. 01255_ Penetrated by HV Slug. 01255_ Critical hit (Destroy). 01255_ Lgt. Armor Plating destroyed. 01255_ HV Slug penetrates Wall. 01255_ 8R-AWN Adv. Weapon Cycler severed. 01259_ Penetrated by HV Slug. 01259_ Critical hit (Destroy). 01259_ Lgt. Armor Plating destroyed. 01264_ Penetrated by HV Slug. Map ----- +----------------------------------------------------+ | ?????????????????????????????????????????????????? | | ?????????????????????????????????????????????????? | | ?????????????????????????????????????????????????? | | ????????????????????????????????????????????????## | | ????????????????????????????????????????????????"" | | ???????????????????????????????????????????????""" | | ??????????????????????????????????????????????#""X | | ??????????????????????????????????????????????#" | | ??????????????????????????????????????????????#" | | ??????????????????????????????????????????????#""" | | ???????????????????????????????????????????????#"# | | ?????????????????????????????????????????????????? | | ?????????????????????????????????????????????????? | | ?????????????????????????????????????????????????? | | ?????????????????????######????????? ????????????? | | ?????????????????????#!!! "???????? ?????????????? | | ?????????? #?????????# "??????# ??????????????? | | ????????? ???????# "#????# #??????????????? | | ????????? ?????## ""#???# #??????#####????? | | ????????? #???#" ""???# #??????? """#???? | | ???????? ?##" "???# #???????"" """#???? | | ???????? #"" #??# #???????#"" #???? | | ??????????# #?# #????????#"" #???? | | ?????????????# ## #?????????#"" "#???? | | ??????????????## [ ;#??????????? ""????? | | ??????????????#" !%!@###???????????" "?????? | | ?????????????""" !g ##??????????# #?????? | | ?????????? "###""! ######???### ###?### | | ????????? ???##" """#####X# #"###"" | | ????????? ?????#" """""" | | ?????????!""""""??????#"# "" """ | | ???????????#?##???????#### " " | | ?????????????????????????### | | ???????????????????????????### | | ?????????????????????????????## | | ??????????????????????????????## | | ???????????????????????????????##" | | ????????????????????????????????#" " | | ????????????????????????????????#" | | ????????????????????????????????"" "" | | ????????????????????????????????""" """# | | ????????????????????????????????"" """## | | ?????????????????????????????????" ""#? | | ????????????????????????????????? #?? | | ?????????????????????????????????" ??? | | ?????????????????????????????????? ??? | | ??????????????????????????????????? ???? | | ?????????????????????????????????????????? ????? | | ?????????????????????????????????????????????????? | | ?????????????????????????????????????????????????? | +----------------------------------------------------+ Best States ------------- Heat Dissipation 25 Energy Generation 14 Energy Capacity 160 Matter Stores 300 Matter Capacity 300 Sight Range 16 Terrain Scan Density 10 Armor Coverage 300 Evasion (%) 50 Recoil Reduction 2 Item Schematics ----------------- None Robot Schematics ------------------ None Fabricated ------------ Nothing Alien Tech Used ----------------- None Achievements -------------- None Challenges ------------ None Game ------ Seed ClaymoresMobileArmor Manual? 0 Play Time 00:09:58 Cumulative 437.1 hours Start 2023.05.02 @ 20:48:07 End 2023.05.03 @ 00:15:11 Sessions 3 Manual Loads 0 Difficulty Rogue Special Mode None Game No. 476 Rogue 476 Adventurer 0 Explorer 0 Win Type - Total 12 Types 8/0/3/1/0/0/0/0/0 Lore% 82 Gallery% 90 Achievement% 80 Wizard Run 0 Options --------- ASCII 0 Keyboard 0 Movement Numpad Keybinds 0 Fullscreen 1 Font 18/Terminus Map View 76x50 Tactical HUD 1 Map Filters NONE Filters NONE Steam 1 RUN: 507e8f46-ebc6-4aa1-bdef-dd8a28192b8c